fUSD/lending_fUSD_20251130
["ID","MTS","AMOUNT","RATE_DAILY","PERIOD"]
[395175509,1764514239315,-151.0,0.00014121,2]
[395175510,1764514239324,-151.0,0.00014121,2]
[395175511,1764514239334,-151.0,0.00014121,2]
[395175512,1764514239343,-182.00740607,0.00014121,2]
[395175513,1764514239353,-150.0,0.00014121,2]
[395175514,1764514239363,-150.0,0.00014121,2]
[395175515,1764514239372,-150.0,0.00014121,2]
[395175516,1764514239383,-150.0,0.00014121,2]
[395175517,1764514239392,-150.0,0.00014121,2]
[395175518,1764514239402,-160.73087474,0.00014121,2]
[395175519,1764514239412,-150.0,0.00014121,2]
[395175520,1764514239423,-150.69072968,0.00014121,2]
[395175521,1764514239437,-150.0,0.00014121,2]
[395175522,1764514239447,-150.0,0.00014121,2]
[395175523,1764514239457,-150.0,0.00014121,2]
[395175524,1764514239467,-150.0,0.00014121,2]
[395175525,1764514239476,-150.0,0.00014121,2]
[395175526,1764514239486,-160.56075218,0.00014121,2]
[395175527,1764514239496,-150.0,0.00014121,2]
[395175529,1764514239506,-150.0,0.00014121,2]
[395175531,1764514239516,-150.0,0.00014121,2]
[395175532,1764514239525,-150.0,0.00014121,2]
[395175533,1764514239535,-150.0,0.00014121,2]
[395175534,1764514239545,-158.73149787,0.00014121,2]
[395175535,1764514239555,-150.0,0.00014121,2]
[395175536,1764514239564,-500.0,0.00014121,2]
[395175537,1764514239573,-153.48713579,0.00014121,2]
[395175538,1764514239583,-151.49686011,0.00014121,2]
[395175539,1764514239593,-500.0,0.00014121,2]
[395175540,1764514239604,-150.0,0.00014121,2]
[395175541,1764514239614,-153.0061579,0.00014121,2]
[395175542,1764514239623,-151.73896267,0.00014121,2]
[395175543,1764514239633,-154.64526929,0.00014121,2]
[395175544,1764514239643,-151.5737728,0.00014121,2]
[395175545,1764514239658,-150.0,0.00014121,2]
[395175546,1764514239668,-150.0,0.00014121,2]
[395175547,1764514239682,-500.0,0.00014128,2]
[395175548,1764514239695,-500.0,0.00014128,2]
[395175549,1764514239705,-500.0,0.00014128,2]
[395175550,1764514239715,-500.0,0.00014128,2]
[395175551,1764514239724,-519.79569884,0.00014128,2]
[395175552,1764514239734,-500.0,0.00014128,2]
[395175553,1764514239743,-507.06907365,0.00014128,2]
[395175554,1764514239753,-600.01,0.00014129,2]
[395175555,1764514239763,-24086.4323,0.00014129,2]
[395175556,1764514239772,-1000.0,0.00014129,2]
[395175557,1764514239782,-500.0,0.00014228,2]
[395175558,1764514239792,-500.0,0.00014228,2]
[395175559,1764514239801,-500.0,0.00014228,2]
[395175560,1764514239811,-500.0,0.00014228,2]
[395175561,1764514239822,-510.75391486,0.00014228,2]
[395175562,1764514239833,-500.0,0.00014228,2]
[395175563,1764514239843,-500.0,0.00014228,2]
[395175564,1764514239853,-500.0,0.00014228,2]
[395175565,1764514239862,-500.0,0.00014228,2]
[395175566,1764514239871,-500.0,0.00014228,2]
[395175567,1764514239881,-501.94155033,0.00014228,2]
[395175568,1764514239892,-504.54484366,0.00014228,2]
[395175569,1764514239901,-500.0,0.00014228,2]
[395175570,1764514239911,-515.50012945,0.00014228,2]
[395175571,1764514239921,-500.0,0.00014228,2]
[395175572,1764514239934,-500.0,0.00014228,2]
[395175573,1764514239944,-500.0,0.00014228,2]
[395175574,1764514239953,-500.0,0.00014228,2]
[395175575,1764514239963,-521.68557809,0.00014228,2]
[395175576,1764514239974,-500.0,0.00014228,2]
[395175577,1764514239984,-500.0,0.00014228,2]
[395175578,1764514239994,-331.0821075,0.00014228,2]
[395175579,1764514240010,-217.01825676,0.00014228,2]
[395175580,1764514240020,-508.84875316,0.00014228,2]
[395175581,1764514240031,-150.0,0.00014258,2]
[395175582,1764514240041,-150.0,0.00014258,2]
[395175583,1764514240050,-150.0,0.00014258,2]
[395175584,1764514240060,-150.0,0.00014258,2]
[395175585,1764514240070,-150.0,0.00014258,2]
[395175586,1764514240080,-150.0,0.00014258,2]
[395175587,1764514240090,-150.0,0.00014258,2]
[395175588,1764514240099,-150.0,0.00014258,2]
[395175589,1764514240109,-150.0,0.00014258,2]
[395175590,1764514240119,-150.0,0.00014258,2]
[395175591,1764514240129,-150.0,0.00014258,2]
[395175592,1764514240139,-150.0,0.00014258,2]
[395175594,1764514240148,-150.0,0.00014258,2]
[395175595,1764514240157,-150.0,0.00014258,2]
[395175596,1764514240167,-500.0,0.00014258,2]
[395175597,1764514240176,-565.01712022,0.00014258,2]
[395175598,1764514240186,-200.0,0.0001429,2]
[395175599,1764514240196,-508.69,0.00014298,2]
[395175601,1764514240205,-999.0,0.00014343,3]
[395175603,1764514240215,-8276.37023668,0.00014348,2]
[395175604,1764514240224,-8473.45420903,0.00014348,2]
[395175605,1764514240233,-501.73720002,0.00014353,2]
[395175606,1764514240243,-150.0,0.00014395,2]
[395175607,1764514240253,-150.0,0.00014395,2]
[395175608,1764514240263,-150.0,0.00014395,2]
[395175609,1764514240274,-150.0,0.00014395,2]
[395175610,1764514240284,-150.0,0.00014395,2]
[395175611,1764514240295,-150.0,0.00014395,2]
[395175612,1764514240304,-150.0,0.00014395,2]
[395175613,1764514240315,-200.0,0.00014395,2]
[395175614,1764514240326,-150.0,0.00014395,2]
[395175615,1764514240336,-200.0,0.00014395,2]
[395175616,1764514240346,-200.0,0.00014395,2]
[395175617,1764514240355,-200.0,0.00014395,2]
[395175618,1764514240366,-500.0,0.00014395,2]
[395175619,1764514240375,-600.0,0.00014403,2]
[395175620,1764514240388,-2751.0,0.00014477,2]
[395175621,1764514240398,-237.3246584,0.00014521,2]
[395175622,1764514240408,-279.0,0.00014532,2]
[395175623,1764514240417,-200.0,0.00014532,2]
[395175624,1764514240427,-285.29372692,0.00014532,2]
[395175625,1764514240437,-150.0,0.00014532,2]
[395175626,1764514240446,-200.0,0.00014532,2]
[395175627,1764514240456,-200.0,0.00014532,2]
[395175628,1764514240465,-200.0,0.00014532,2]
[395175629,1764514240475,-200.0,0.00014532,2]
[395175630,1764514240485,-500.0,0.00014532,2]
[395175631,1764514240495,-508.69,0.00014572,2]
[395175632,1764514240504,-8276.37023668,0.00014667,2]
[395175633,1764514240514,-8473.45420903,0.00014667,2]
[395175634,1764514240523,-500.0,0.00014669,2]
[395175635,1764514240534,-150.0,0.00014669,2]
[395175636,1764514240544,-500.0,0.00014669,2]
[395175637,1764514240553,-600.0,0.00014677,2]
[395175638,1764514240563,-166.66,0.00014696,2]
[395175639,1764514240574,-501.73720002,0.00014778,2]
[395175640,1764514240586,-211.0,0.00014806,2]
[395175641,1764514240598,-500.0,0.00014806,2]
[395175642,1764514240608,-195.0,0.00014845,2]
[395175643,1764514240619,-392.77325824,0.00014845,2]
[395175644,1764514240629,-508.69,0.00014846,2]
[395175645,1764514240640,-166.66,0.00014886,2]
[395175646,1764514240650,-500.0,0.00014943,2]
[395175647,1764514240659,-600.0,0.00014951,2]
[395175648,1764514240668,-1590.96,0.00014954,2]
[395175649,1764514240678,-8276.37023668,0.00014986,2]
[395175650,1764514240687,-8473.45420903,0.00014986,2]
[395175651,1764514240696,-231.64720255,0.00014999,2]
[395175652,1764514240706,-500.0,0.00014999,2]
[395175653,1764514240717,-540.71917716,0.00014999,2]
[395175654,1764514240726,-1072.21727013,0.00015004,2]
[395175655,1764514240735,-166.66,0.00015005,2]
[395175656,1764514240745,-156.75181041,0.00015068,2]
[395175657,1764514240758,-500.0,0.0001508,2]
[395175658,1764514240767,-508.69,0.0001512,2]
[395175659,1764514240776,-255.0,0.00015146,2]
[395175660,1764514240786,-732.0,0.0001517,2]
[395175661,1764514240795,-420.0,0.0001517,2]
[395175662,1764514240805,-501.73720002,0.00015202,2]
[395175663,1764514240815,-500.0,0.00015217,2]
[395175664,1764514240825,-600.0,0.00015225,2]
[395175665,1764514240835,-1680.0,0.00015228,2]
[395175666,1764514240844,-281.90988596,0.0001523,2]
[395175667,1764514240854,-150.0,0.00015288,2]
[395175668,1764514240863,-150.0,0.00015288,2]
[395175669,1764514240873,-150.0,0.00015288,2]
[395175670,1764514240882,-150.0,0.00015288,2]
[395175671,1764514240892,-150.0,0.00015288,2]
[395175672,1764514240901,-154.08670011,0.00015288,2]
[395175673,1764514240911,-150.0,0.00015288,2]
[395175674,1764514240922,-152.22579764,0.00015288,2]
[395175675,1764514240936,-150.0,0.00015288,2]
[395175676,1764514240947,-157.84068384,0.00015288,2]
[395175677,1764514240957,-150.0,0.00015288,2]
[395175678,1764514240967,-8276.37023668,0.00015305,2]
[395175679,1764514240976,-8473.45420903,0.00015305,2]
[395175680,1764514240986,-166.66,0.00015314,2]
[395175681,1764514240995,-500.0,0.00015354,2]
[395175682,1764514241005,-166.66,0.00015377,2]
[395175683,1764514241017,-508.7,0.00015394,2]
[395175684,1764514241027,-564.93375674,0.00015491,2]
[395175685,1764514241036,-600.0,0.00015499,2]
[395175686,1764514241045,-166.66,0.00015624,2]
[395175687,1764514241056,-8276.37023668,0.00015624,2]
[395175688,1764514241067,-8473.45420903,0.00015624,2]
[395175689,1764514241079,-1053.53198319,0.00015624,2]
[395175690,1764514241090,-1004.49093866,0.00015624,2]
[395175691,1764514241099,-1066.63173488,0.00015624,2]
[395175692,1764514241109,-1148.92087602,0.00015624,2]
[395175693,1764514241118,-1096.69441784,0.00015624,2]
[395175694,1764514241127,-1082.8676438,0.00015624,2]
[395175695,1764514241136,-918.31560016,0.00015624,2]
[395175696,1764514241146,-501.73720002,0.00015627,2]
[395175697,1764514241158,-718.61,0.00015773,2]
[395175698,1764514241168,-150.0,0.00015854,2]
[395175699,1764514241177,-150.0,0.00015854,2]
[395175700,1764514241186,-150.0,0.00015854,2]
[395175701,1764514241196,-166.66,0.00015868,2]
[395175702,1764514241205,-169.10305326,0.00015872,2]
[395175703,1764514241215,-686.0379141,0.000159,2]
[395175704,1764514241225,-500.0,0.00015901,2]
[395175705,1764514241234,-166.66,0.00015933,2]
[395175706,1764514241244,-8276.37023668,0.00015943,2]
[395175707,1764514241253,-8473.45420903,0.00015943,2]
[395175708,1764514241263,-500.0,0.00015972,2]
[395175709,1764514241272,-500.0,0.00015973,2]
[395175710,1764514241283,-172.14260256,0.00015973,2]
[395175711,1764514241292,-161.07388452,0.00015973,2]
[395175712,1764514241302,-507.35080236,0.00015973,2]
[395175713,1764514241312,-174.27937181,0.00015973,2]
[395175714,1764514241321,-160.07187961,0.00015973,2]
[395175715,1764514241331,-500.0,0.00015973,2]
[395175716,1764514241340,-500.0,0.00015973,2]
[395175717,1764514241351,-500.0,0.00015973,2]
[395175718,1764514241360,-500.0,0.00015973,2]
[395175719,1764514241370,-500.0,0.00015973,2]
[395175720,1764514241379,-500.0,0.00015973,2]
[395175721,1764514241389,-500.0,0.00015973,2]
[395175722,1764514241399,-506.31065896,0.00015973,2]
[395175723,1764514241408,-622.74851177,0.00015973,2]
[395175724,1764514241418,-500.0,0.00015973,2]
[395175725,1764514241428,-500.65013658,0.00015973,2]
[395175726,1764514241438,-500.0,0.00015973,2]
[395175727,1764514241447,-215.69681959,0.00015973,2]
[395175728,1764514241457,-500.0,0.00015973,2]
[395175729,1764514241466,-157.2860755,0.00015973,2]
[395175730,1764514241476,-500.0,0.00015973,2]
[395175731,1764514241486,-500.0,0.00015999,2]
[395175732,1764514241495,-501.73720002,0.00016051,2]
[395175733,1764514241504,-1603.0,0.00016221,2]
[395175734,1764514241513,-1321.0,0.00016221,2]
[395175735,1764514241524,-610.0,0.00016221,2]
[395175736,1764514241534,-3442.0,0.00016221,2]
[395175737,1764514241544,-640.0,0.00016221,2]
[395175738,1764514241553,-1258.0,0.00016221,2]
[395175739,1764514241563,-177.0,0.00016221,2]
[395175740,1764514241575,-6506.0,0.00016221,2]
[395175741,1764514241586,-562.0,0.00016221,2]
[395175742,1764514241595,-252.0,0.00016221,2]
[395175743,1764514241607,-166.66,0.00016243,2]
[395175744,1764514241616,-8276.37023668,0.00016262,2]
[395175745,1764514241627,-8473.45420903,0.00016262,2]
[395175746,1764514241637,-433.0,0.00016352,2]
[395175747,1764514241646,-166.66,0.0001636,2]
[395175748,1764514241656,-150.0,0.0001642,2]
[395175749,1764514241667,-150.0,0.0001642,2]
[395175750,1764514241677,-150.0,0.0001642,2]
[395175751,1764514241687,-150.0,0.00016438,2]
[395175752,1764514241697,-13520.3,0.00016438,2]
[395175753,1764514241707,-800.0,0.00016438,2]
[395175754,1764514241718,-501.73720002,0.00016476,2]
[395175755,1764514241728,-160.11734806,0.000165,2]
[395175756,1764514241738,-505.74952757,0.00016521,2]
[395175757,1764514241747,-1000.0,0.00016521,2]
[395175758,1764514241757,-502.84705647,0.00016521,2]
[395175759,1764514241766,-1000.0,0.00016521,2]
[395175760,1764514241776,-1000.0,0.00016521,2]
[395175761,1764514241786,-1000.0,0.00016521,2]
[395175762,1764514241795,-1000.0,0.00016521,2]
[395175763,1764514241804,-1000.0,0.00016521,2]
[395175764,1764514241814,-1000.0,0.00016521,2]
[395175765,1764514241823,-1000.0,0.00016521,2]
[395175766,1764514241833,-1000.0,0.00016521,2]
[395175767,1764514241842,-207.95472836,0.00016575,2]
[395175768,1764514241851,-8276.37023668,0.00016581,2]
[395175769,1764514241860,-8473.45420903,0.00016581,2]
[395175770,1764514241870,-557.0,0.00016623,2]
[395175771,1764514241879,-222.75,0.00016712,2]
[395175772,1764514241889,-1400.97258954,0.00016731,2]
[395175773,1764514241898,-2351.0,0.00016751,2]
[395175774,1764514241908,-1819.58671573,0.000168,2]
[395175775,1764514241917,-166.66,0.00016851,2]
[395175776,1764514241926,-8276.37023668,0.000169,2]
[395175777,1764514241939,-8473.45420903,0.000169,2]
[395175778,1764514241948,-226.01017228,0.000169,2]
[395175779,1764514241958,-1246.1397536,0.000169,2]
[395175780,1764514241968,-500.0,0.000169,2]
[395175781,1764514241978,-500.0,0.000169,2]
[395175782,1764514241987,-500.0,0.000169,2]
[395175783,1764514241996,-500.0,0.000169,2]
[395175784,1764514242007,-500.0,0.000169,2]
[395175785,1764514242017,-500.0,0.000169,2]
[395175786,1764514242026,-500.0,0.000169,2]
[395175787,1764514242036,-500.0,0.000169,2]
[395175788,1764514242045,-500.0,0.000169,2]
[395175789,1764514242055,-500.0,0.000169,2]
[395175790,1764514242066,-500.0,0.000169,2]
[395175791,1764514242077,-500.0,0.000169,2]
[395175792,1764514242086,-500.0,0.000169,2]
[395175793,1764514242096,-500.0,0.000169,2]
[395175794,1764514242106,-500.0,0.000169,2]
[395175795,1764514242117,-500.0,0.000169,2]
[395175796,1764514242128,-197.92719606,0.000169,2]
[395175797,1764514242137,-222.29257723,0.00016953,2]
[395175798,1764514242147,-500.0,0.00016973,2]
[395175799,1764514242156,-502.42313954,0.00016973,2]
[395175800,1764514242166,-162.090508,0.00016973,2]
[395175802,1764514242177,-339.26563356,0.00016973,2]
[395175804,1764514242187,-507.2295556,0.00016973,2]
[395175805,1764514242196,-232.40806133,0.00016973,2]
[395175806,1764514242207,-500.0,0.00016973,2]
[395175807,1764514242217,-366.95471126,0.00016973,2]
[395175808,1764514242227,-500.0,0.00016973,2]
[395175809,1764514242237,-500.38978168,0.00016973,2]
[395175810,1764514242247,-500.838144,0.00016973,2]
[395175811,1764514242258,-500.0,0.00016973,2]
[395175812,1764514242269,-500.0,0.00016973,2]
[395175813,1764514242278,-500.0,0.00016973,2]
[395175814,1764514242287,-500.0,0.00016973,2]
[395175815,1764514242297,-500.0,0.00016973,2]
[395175816,1764514242306,-500.0,0.00016973,2]
[395175817,1764514242316,-500.0,0.00016973,2]
[395175818,1764514242326,-500.0,0.00016973,2]
[395175819,1764514242336,-500.0,0.00016973,2]
[395175820,1764514242346,-500.0,0.00016973,2]
[395175821,1764514242355,-500.0,0.00016973,2]
[395175822,1764514242364,-500.75968259,0.00016973,2]
[395175823,1764514242373,-500.0,0.00016973,2]
[395175824,1764514242383,-500.0,0.00016973,2]
[395175825,1764514242392,-500.0,0.00016973,2]
[395175826,1764514242402,-500.0,0.00016973,2]
[395175827,1764514242412,-415.54250471,0.00016973,2]
[395175828,1764514242422,-500.0,0.00016973,2]
[395175829,1764514242431,-500.0,0.00016973,2]
[395175830,1764514242440,-166.09514249,0.00016973,2]
[395175831,1764514242450,-500.0,0.00016973,2]
[395175832,1764514242459,-500.0,0.00016973,2]
[395175833,1764514242468,-500.0,0.00016973,2]
[395175834,1764514242478,-500.0,0.00016973,2]
[395175835,1764514242487,-500.0,0.00016973,2]
[395175836,1764514242496,-505.47277289,0.00016983,2]
[395175837,1764514242505,-1347.0,0.00016986,2]
[395175838,1764514242514,-247.83814987,0.00016986,2]
[395175839,1764514242523,-150.0,0.00016986,2]
[395175840,1764514242533,-161.55023827,0.00016986,2]
[395175841,1764514242543,-150.0,0.00016986,2]
[395175842,1764514242552,-150.0,0.00016986,2]
[395175843,1764514242562,-150.0,0.00016986,2]
[395175844,1764514242571,-164.38079063,0.00016989,2]
[395175845,1764514242581,-164.38079063,0.0001699,2]
[395175846,1764514242591,-151.0,0.00016996,2]
[395175847,1764514242602,-151.0,0.00016997,2]
[395175848,1764514242612,-500.0,0.00016998,2]
[395175849,1764514242622,-500.0,0.00016998,2]
[395175850,1764514242631,-500.0,0.00016999,2]
[395175851,1764514242641,-500.0,0.00016999,2]
[395175852,1764514242651,-500.0,0.00016999,2]
[395175853,1764514242660,-500.0,0.00016999,2]
[395175854,1764514242669,-316959.220678,0.00016999,2]
[395175855,1764514242679,-89119.0161354,0.00016999,2]
[395175856,1764514242687,-3663.5638984,0.00016999,2]
[395175857,1764514242697,-360092.7183638,0.00016999,2]
[395175858,1764514242706,-1865.1674557,0.00016999,2]
[395175859,1764514242716,-366.99815821,0.00016999,2]
[395175860,1764514242725,-300.0,0.00016999,2]
[395175861,1764514242735,-1879.2144371,0.00016999,2]
[395175862,1764514242744,-300.0,0.00016999,2]
[395175863,1764514242754,-731868.54439222,0.00017,2]
[395175864,1764514242763,-3336598.20707965,0.00017,2]
[395175865,1764514242780,-825.80335874,0.00017,2]
[395175866,1764514242792,-813.8673398,0.00017,2]
[395175867,1764514242803,-606.81036373,0.00017,2]
[395175868,1764514242815,-734.20333733,0.00017,2]
[395175869,1764514242826,-272792.72832898,0.00017,2]
[395175883,1764514243195,-2163.54,0.00017,2]
[395175884,1764514243207,-2336.0,0.00017,2]
[395175885,1764514243228,-8690.82653692,0.00017,2]
[395175887,1764514243470,-57876.27030517,0.00017,2]
[395175889,1764514243642,-2718.0,0.00016221,2]
[395175890,1764514243656,-501.73720002,0.000169,2]
[395175891,1764514243666,-184480.00997241,0.00017,2]
[395175892,1764514243679,-1613.3279235,0.00017,2]
[395175893,1764514243696,-2286.74655638,0.00017,2]
[395175894,1764514243708,-356.94828119,0.00017,2]
[395175895,1764514243720,-480.0,0.00017,2]
[395175896,1764514243733,-3169.50055999,0.00017,2]
[395175897,1764514243745,-1598.05390316,0.00017,2]
[395175902,1764514245595,-1243.95899384,0.00017,2]
[395175903,1764514245731,-592.33383492,0.00017,2]
[395175904,1764514245742,-370.0418378,0.00017,2]
[395175919,1764514409224,1409.60992576,0.00022,30]
[395176170,1764515172642,167.12,0.00019178,30]
[395176231,1764515431582,-928.52587715,0.00013344,2]
[395176232,1764515431594,-3863.43412285,0.00013344,2]
[395176233,1764515431603,-1200.0,0.00013592,2]
[395176234,1764515431613,-5143.9,0.00013593,2]
[395176235,1764515431622,-300.0,0.00013698,2]
[395176236,1764515431632,-300.0,0.00013698,2]
[395176238,1764515431652,-804.95,0.00013699,2]
[395176240,1764515431662,-3158.975,0.00013748,2]
[395176242,1764515431672,-168.475,0.00013748,2]
[395176243,1764515431682,-95.12587715,0.00013921,2]
[395176244,1764515431697,-91.58077191,0.00013921,2]
[395176245,1764515431707,-267.65922809,0.00013928,2]
[395176246,1764515431719,-232.34077191,0.00013928,2]
[395176247,1764515431729,-284.67618588,0.00013928,2]
[395176248,1764515431742,-215.32381412,0.00013928,2]
[395176249,1764515431752,-500.0,0.00013928,2]
[395176250,1764515431762,-275.65557588,0.00013928,2]
[395176251,1764515431791,-104.98413231,0.00013928,2]
[395176252,1764515431801,-150.0,0.00013928,2]
[395176253,1764515431810,-592.19301373,0.00013928,2]
[395176254,1764515431820,-376.30290005,0.00013929,2]
[395176255,1764515431830,-51863.34035048,0.00013929,2]
[395176256,1764515431841,-32735.1701435,0.00013929,2]
[395176257,1764515431852,-10835.42365284,0.00013929,2]
[395176258,1764515431863,-727.65809693,0.00013929,2]
[395176260,1764515431898,-784.99999989,0.00013929,2]
[395176262,1764515431913,-9985.19402872,0.00013929,2]
[395176263,1764515431924,-11951.19070884,0.00013929,2]
[395176272,1764515437855,-500.78466187,0.00013929,2]
[395176273,1764515437892,-9401.64,0.00013929,2]
[395176274,1764515437904,-631214.59835693,0.00013929,2]
[395176275,1764515437913,-1252.0856,0.00013929,2]
[395176276,1764515437922,-1474.7095,0.00013929,2]
[395176277,1764515437932,-151.0,0.00014021,2]
[395176278,1764515437942,-151.0,0.00014021,2]
[395176279,1764515437951,-151.0,0.00014021,2]
[395176280,1764515437960,-151.0,0.00014021,2]
[395176281,1764515437970,-151.0,0.00014021,2]
[395176282,1764515437979,-151.0,0.00014021,2]
[395176283,1764515437988,-151.0,0.00014021,2]
[395176284,1764515437997,-151.0,0.00014021,2]
[395176285,1764515438007,-182.00740607,0.00014021,2]
[395176286,1764515438016,-500.0,0.00014021,2]
[395176287,1764515438025,-500.0,0.00014021,2]
[395176288,1764515438035,-500.0,0.00014021,2]
[395176289,1764515438045,-500.0,0.00014021,2]
[395176290,1764515438056,-500.0,0.00014021,2]
[395176291,1764515438065,-200.0,0.00014021,2]
[395176292,1764515438075,-500.0,0.00014021,2]
[395176293,1764515438084,-500.0,0.00014021,2]
[395176294,1764515438094,-500.0,0.00014021,2]
[395176295,1764515438104,-500.0,0.00014021,2]
[395176296,1764515438113,-500.0,0.00014021,2]
[395176297,1764515438122,-500.0,0.00014021,2]
[395176298,1764515438132,-500.0,0.00014021,2]
[395176299,1764515438141,-500.0,0.00014021,2]
[395176301,1764515438151,-500.0,0.00014021,2]
[395176303,1764515438160,-500.0,0.00014021,2]
[395176305,1764515438169,-500.0,0.00014021,2]
[395176308,1764515438182,-500.0,0.00014021,2]
[395176309,1764515438191,-500.0,0.00014021,2]
[395176311,1764515438199,-500.0,0.00014021,2]
[395176312,1764515438209,-500.0,0.00014021,2]
[395176314,1764515438219,-500.0,0.00014021,2]
[395176315,1764515438228,-500.0,0.00014021,2]
[395176316,1764515438237,-500.0,0.00014021,2]
[395176317,1764515438246,-500.0,0.00014021,2]
[395176318,1764515438256,-500.0,0.00014021,2]
[395176319,1764515438266,-500.0,0.00014021,2]
[395176320,1764515438275,-500.0,0.00014021,2]
[395176321,1764515438284,-200.0,0.00014021,2]
[395176322,1764515438294,-200.0,0.00014021,2]
[395176323,1764515438303,-151.0,0.00014021,2]
[395176324,1764515438313,-151.0,0.00014021,2]
[395176325,1764515438323,-151.0,0.00014021,2]
[395176326,1764515438332,-151.0,0.00014021,2]
[395176327,1764515438342,-151.0,0.00014021,2]
[395176328,1764515438351,-151.0,0.00014021,2]
[395176329,1764515438361,-151.0,0.00014021,2]
[395176330,1764515438378,-151.0,0.00014021,2]
[395176331,1764515438398,-151.0,0.00014021,2]
[395176332,1764515438415,-151.0,0.00014021,2]
[395176333,1764515438425,-151.0,0.00014021,2]
[395176334,1764515438435,-151.0,0.00014021,2]
[395176335,1764515438444,-151.0,0.00014021,2]
[395176336,1764515438458,-643.26,0.00014021,2]
[395176337,1764515438468,-150.0,0.00014021,2]
[395176338,1764515438478,-150.0,0.00014021,2]
[395176339,1764515438487,-160.56075218,0.00014021,2]
[395176340,1764515438496,-159.33028222,0.00014021,2]
[395176341,1764515438506,-150.0,0.00014021,2]
[395176342,1764515438515,-500.0,0.00014021,2]
[395176343,1764515438525,-150.0,0.00014021,2]
[395176344,1764515438534,-150.69072968,0.00014021,2]
[395176345,1764515438544,-500.0,0.00014021,2]
[395176346,1764515438553,-150.0,0.00014021,2]
[395176347,1764515438564,-150.0,0.00014021,2]
[395176348,1764515438574,-150.0,0.00014021,2]
[395176349,1764515438583,-500.0,0.00014028,2]
[395176350,1764515438593,-500.0,0.00014028,2]
[395176351,1764515438603,-500.0,0.00014028,2]
[395176352,1764515438612,-500.0,0.00014028,2]
[395176353,1764515438622,-500.0,0.00014028,2]
[395176354,1764515438631,-500.0,0.00014028,2]
[395176355,1764515438640,-500.0,0.00014028,2]
[395176356,1764515438650,-500.0,0.00014028,2]
[395176357,1764515438659,-500.0,0.00014028,2]
[395176358,1764515438668,-500.0,0.00014028,2]
[395176359,1764515438678,-519.79569884,0.00014028,2]
[395176360,1764515438687,-500.0,0.00014028,2]
[395176361,1764515438697,-500.0,0.00014028,2]
[395176362,1764515438707,-500.0,0.00014028,2]
[395176363,1764515438716,-500.0,0.00014028,2]
[395176364,1764515438726,-500.0,0.00014028,2]
[395176365,1764515438736,-500.0,0.00014028,2]
[395176366,1764515438745,-500.0,0.00014028,2]
[395176367,1764515438755,-504.54484366,0.00014028,2]
[395176368,1764515438766,-500.0,0.00014028,2]
[395176369,1764515438775,-500.0,0.00014028,2]
[395176370,1764515438785,-500.0,0.00014028,2]
[395176371,1764515438795,-500.0,0.00014028,2]
[395176372,1764515438805,-500.0,0.00014028,2]
[395176373,1764515438815,-500.0,0.00014028,2]
[395176374,1764515438825,-500.0,0.00014028,2]
[395176375,1764515438834,-521.68557809,0.00014028,2]
[395176376,1764515438843,-500.0,0.00014028,2]
[395176377,1764515438853,-500.0,0.00014028,2]
[395176378,1764515438862,-33399.3792,0.00014029,2]